{"text_format":"1","workbook":"xlsx","n_sheets":4,"sheets":["Данные","Заявление","Личная карточка","Легенда"],"not_rendered":{"charts":0,"images":1,"macros":1,"external_links":0,"defined_names":2,"comments":0,"pivot_tables":0},"unopened":[],"bounds":{"document_bytes":16777216,"sheet_cells":100000,"rows_first":2000,"rows_last":500,"rows_between":2000,"halvings":0,"cell_chars":16384,"cell_head_chars":4096},"cells_cut":0,"cells_raw":0,"read":"whole","date_system":"1900"}

{"sheet":"Данные","index":0,"n_rows":3,"n_cols":40,"rows_kept":3,"cut":false,"hidden":false,"merged":[]}
["Прошу принять мои документы для поступления в Санкт-Петербургское государственное бюджетное профессиональное образовательное учреждение \"Санкт-Петербургское музыкальное училище имени М.П. Мусоргского\"","Номер отдела","Номер заявления","Средний балл аттестата (9 классов)","Выберите форму обучения","Выберите образовательный стандарт, на который вы поступаете","Выберите отделение, на которое вы поступаете","Ваш специальный инструмент","Ваша фамилия","Ваше имя","Ваше отчество","Ваш пол","Дата рождения","Место рождения","Гражданство","Серия и номер действующего паспорта","Кем выдан действующий паспорт","Дата выдачи действующего паспорта","Адрес по прописке","Регион, в котором вы прописаны на дату подачи документов","Адрес фактического проживания","Адрес родителей","Номер ИНН","Номер СНИЛС","Личный номер телефона для связи","Отношение к военной службе","ФИО родителя/законного представителя","Номер телефона родителя/законного представителя","Год окончания 9 классов","Серия и номер аттестата об окончании 9 классов","Дата выдачи аттестата об окончании 9 классов","Наименование учебного заведения выдавшего аттестат об окончании 9 классов","Регион, в котором было получено основное общее образование (9 классов)","Год окончания 11 классов","Год окончания ВУЗа","Относитесь ли вы к льготной категории граждан?","Название музыкальной школы, которую вы закончили","Необходимы ли специальные условия при проведении вступительных испытаний (для лиц с ограниченными возможностями)","ФИО концертмейстера, если таковой аккомпанирует абитуриенту на вступительном испытании","Предоставляя заполненные сведения, в том числе по каналам связи, я даю СПб ГБПОУ \"Санкт-Петербургское музыкальное училище имени М.П. Мусоргского\" согласие на обработку моих личных персональных данных, а также несу полную ответственность за предоставленные персональные данные иных лиц"]
[]
["Выбрать из списка","Заполняет приемная комиссия","Заполняет приемная комиссия","Заполняет приемная комиссия","Выбрать из списка","Выбрать из списка","Выбрать из списка","Выбрать из списка",null,null,"При отсутствии проставьте \"нет\"","Выбрать из списка","укажите в формате ДД.ММ.ГГГГ","По паспорту","для России укажите \"РФ\"","Образец заполнения: 1234 123456","Заполняется без сокращений, как в паспорте","укажите в формате ДД.ММ.ГГГГ","Образец заполнения: Приморский край, г. Владивосток, ул. Камская, дом 3, кв. 160. Заполняется без сокращений, как в паспорте","Выбрать из списка. Для иностранных граждан укажите \"За пределами РФ\"","Образец заполнения: Ленинградская область, г. Всеволожск, Колтушское шоссе. дом 40, корп.1, кв.50","Образец заполнения: Ленинградская область, г. Всеволожск, Колтушское шоссе. дом 40, корп.1, кв.50","12 цифр","Образец заполнения: 000-000-000 00","Образец заполнения: 79115556677","Выбрать из списка",null,"Образец заполнения: 79115556677","Образец заполнения: 2026","Образец заполнения: 0123 12345678","укажите в формате ДД.ММ.ГГГГ","Образец заполнения: ГБОУ СОШ №5 Всеволожск","Выбрать из списка. Для иностранных граждан укажите \"За пределами РФ\"","Заполняется при наличии","Заполняется при наличии","Выбрать из списка","Образец заполнения: ДШИ №1, г. Радужный ХМАО-Югры (Тюменская область). Обязательно укажите город и область","Выбрать из списка","Необходимо указать ФИО вашего концертмейстера для допуска в помещение прослушивания","Впишите \"Даю согласие\", в противном случае необходимо предоставить файл лично в приемную комиссию на флешке"]

{"sheet":"Заявление","index":1,"n_rows":54,"n_cols":9,"rows_kept":54,"cut":false,"hidden":false,"merged":[[34,6,34,9],[7,8,7,9],[10,3,10,6],[1,8,1,9],[5,8,5,9],[2,4,3,9],[6,7,6,9],[4,8,4,9],[53,7,53,9],[35,6,38,9],[45,1,47,4],[43,6,43,7],[12,1,15,9],[40,6,42,9],[19,3,19,6],[20,3,20,6],[21,3,21,6],[25,6,25,7],[26,6,26,7],[23,3,23,4],[31,3,31,4],[27,6,30,9],[32,1,32,6],[33,6,33,9]]}
[]
[null,null,null,null,null,null,null,null,"Директору"]
[null,null,null,null,"СПб ГБПОУ \"Санкт-Петербургское музыкальное училище имени М.П. Мусоргского\""]
[]
[null,null,null,null,null,null,null,null,"Гириной А.С."]
[null,null,null,null,null,null,null,null,"от абитуриента:"]
[null,null,null,null,null,null,null,{"$f":"Данные!I2","v":0}]
[null,null,null,null,null,null,null,{"$f":"Данные!J2","v":0},{"$f":"Данные!K2","v":0}]
[]
[]
[null,null,null,"Заявление"]
[]
[null,"       Прошу принять мои документы для поступления в Санкт-Петербургское государственное бюджетное профессиональное образовательное учреждение \"Санкт-Петербургское музыкальное училище имени М.П. Мусоргского\""]
[]
[]
[]
[]
[null,"О себе сообщаю следующие данные и подтверждаю их достоверность: "]
[]
[null,"Фамилия:",null,{"$f":"Данные!I2","v":0}]
[null,"Имя:",null,{"$f":"Данные!J2","v":0}]
[null,"Отчество:",null,{"$f":"Данные!K2","v":0}]
[]
[null,"Дата рождения: ",null,{"$f":"Данные!M2","v":"00:00:00"}]
[]
[null,"Документ, удостоверяющий личность:",null,null,null,null,{"$f":"Данные!P2","v":0}]
[null,"- Дата выдачи: ",null,null,null,null,{"$f":"Данные!R2","v":"00:00:00"}]
[null,"- Кем выдан:",null,null,null,null,{"$f":"Данные!Q2","v":0}]
[]
[]
[]
[null,"Номер СНИЛС: ",null,{"$f":"Данные!X2","v":0}]
[null,"Сведения о предыдущем уровне образования: "]
[null,"- Номер документа:",null,null,null,null,{"$f":"Данные!AD2","v":0}]
[null,"- Дата выдачи: ",null,null,null,null,{"$f":"Данные!AE2","v":"00:00:00"}]
[null,"- ОУ выдавшее аттестат:",null,null,null,null,{"$f":"Данные!AF2","v":0}]
[]
[]
[]
[null,"Специальность, на которую поступаю:"]
[null,"- Образовательный стандарт:",null,null,null,null,{"$f":"Данные!F2","v":0}]
[]
[]
[null,"- Форма обучения:",null,null,null,null,{"$f":"Данные!E2","v":0}]
[]
[null,"Необходимость создания для поступающего специальных условий при проведении вступительных испытаний:"]
[]
[null,null,null,null,null,null,{"$f":"Данные!AL2","v":0}]
[]
[]
[]
[]
[null,"Дата:  (       ) _______________ 2026 г.",null,null,null,"Подпись: ",null,"      / (____________________)"]
[null,null,null,null,null,null,null,"расшифровка подписи"]

{"sheet":"Личная карточка","index":2,"n_rows":48,"n_cols":8,"rows_kept":48,"cut":false,"hidden":false,"merged":[[11,0,11,4],[12,0,12,4],[13,0,13,4],[25,5,25,9],[29,5,29,7],[19,5,19,8],[20,5,20,8],[21,5,21,8],[2,7,13,9],[16,1,16,8],[6,0,10,4],[5,0,5,4],[46,5,46,8],[31,5,34,9],[36,5,39,9],[43,5,44,9],[47,5,50,9],[41,5,41,8],[42,5,42,8],[45,5,45,8]]}
[]
[]
[null,null,null,null,null,null,null,"Место\nдля \nфотографии\n"]
[]
[]
["КОМИТЕТ ПО КУЛЬТУРЕ                                           САНКТ-ПЕТЕРБУРГА"]
["ГОСУДАРСТВЕННОЕ БЮДЖЕТНОЕ ПРОФЕССИОНАЛЬНОЕ ОБРАЗОВАТЕЛЬНОЕ УЧРЕЖДЕНИЕ «САНКТ-ПЕТЕРБУРГСКОЕ МУЗЫКАЛЬНОЕ УЧИЛИЩЕ имени М.П. МУСОРГСКОГО»"]
[]
[]
[]
[]
["Моховая ул., д. 36, Санкт – Петербург 191028"]
["Тел. (812) 273-03-39; факс. (812) 273-51-42"]
["E-mail: info@musorgsky.spb.ru"]
[]
[]
[null,"ЛИЧНАЯ КАРТОЧКА СТУДЕНТА"]
[null,null,null,"1.    Общие сведения о студенте"]
[]
[null,"Фамилия:",null,null,null,{"$f":"Данные!I2","v":0}]
[null,"Имя:",null,null,null,{"$f":"Данные!J2","v":0}]
[null,"Отчество:",null,null,null,{"$f":"Данные!K2","v":0}]
[null,"Пол: ",null,null,null,{"$f":"Данные!L2","v":0}]
[]
[null,"Дата рождения: ",null,null,null,{"$f":"Данные!M2","v":"00:00:00"}]
[null,"Место рождения: ",null,null,null,{"$f":"Данные!N2","v":0}]
[null,"Гражданство: ",null,null,null,{"$f":"Данные!O2","v":0}]
[]
[null,"Паспортные данные:"]
[null,"- Серия и номер",null,null,null,{"$f":"Данные!P2","v":0}]
[null,"- Дата выдачи",null,null,null,{"$f":"Данные!R2","v":"00:00:00"}]
[null,"- Кем выдан",null,null,null,{"$f":"Данные!Q2","v":0}]
[]
[]
[]
[]
[null,"Адрес по прописке:",null,null,null,{"$f":"Данные!S2","v":0}]
[]
[]
[]
[]
[null,"Телефон:",null,null,null,{"$f":"Данные!Y2","v":0}]
[null,"Отношение к военной службе:",null,null,null,{"$f":"Данные!Z2","v":0}]
[null,"Специальность:",null,null,null,{"$f":"Данные!F2","v":0}]
[]
[null,"ФИО родителя/законного представителя:",null,null,null,{"$f":"Данные!AA2","v":0}]
[null,"Телефон родителя/законного представителя:",null,null,null,{"$f":"Данные!AB2","v":0}]
[null,"Адрес родителей:",null,null,null,{"$f":"Данные!V2","v":0}]

{"sheet":"Легенда","index":3,"n_rows":91,"n_cols":17,"rows_kept":91,"cut":false,"hidden":true,"merged":[]}
[]
["ДА","Бюджетная","53.02.02 Музыкальное искусство эстрады (по видам)","Инструменты эстрадного оркестра","Арфа","Мужской","1980-01-01","За пределами РФ","Военнообязанный","Не отношусь",null,"Даю согласие",null,{"$f":"Данные!I2","v":0},{"$f":"LEFT(Данные!J2)","v":""},{"$f":"LEFT(Данные!K2)","v":""},{"$f":"CONCATENATE(N2, \" \",O2,\". \",P2, \".\")","v":"0 . ."}]
["НЕТ","Платная","53.02.03 Инструментальное исполнительство (по видам инструментов)","Эстрадное пение","Альт","Женский","2016-01-01","Санкт-Петербург","Невоеннообязанный/ая","Дети из многодетных семей"]
[null,null,"53.02.04 Вокальное искусство","Фортепиано (классическое)","Аккордеон",null,"2026-07-01","Москва","Не состою на учете","Дети-сироты"]
[null,null,"53.02.05 Сольное и хоровое народное пение","Орган","Балалайка",null,null,"Севастополь",null,"Дети-инвалиды"]
[null,null,"53.02.07 Теория музыки","Оркестровые струнные инструменты","Баян",null,null,"Ленинградская область",null,"Дети участников СВО (участники СВО)"]
[null,null,"53.02.08 Музыкальное звукооператорское мастерство","Оркестровые духовые и ударные инструменты","Бас-гитара",null,null,"Республика Адыгея",null,"Другое"]
[null,null,null,"Инструменты народного оркестра","Валторна",null,null,"Республика Алтай"]
[null,null,null,"Вокальное искусство","Виолончель",null,null,"Республика Башкортостан"]
[null,null,null,"Сольное и хоровое народное пение","Гитара",null,null,"Республика Бурятия"]
[null,null,null,"Теория музыки","Гобой",null,null,"Республика Дагестан"]
[null,null,null,"Музыкальное звукооператорское мастерство","Гусли",null,null,"Донецкая Народная Республика"]
[null,null,null,null,"Домра малая",null,null,"Республика Ингушетия"]
[null,null,null,null,"Домра альтовая",null,null,"Кабардино-Балкарская Республика"]
[null,null,null,null,"Кларнет",null,null,"Республика Калмыкия"]
[null,null,null,null,"Контрабас",null,null,"Карачаево-Черкесская Республика"]
[null,null,null,null,"Народное пение",null,null,"Республика Карелия"]
[null,null,null,null,"Орган",null,null,"Республика Коми"]
[null,null,null,null,"Саксофон",null,null,"Республика Крым"]
[null,null,null,null,"Скрипка",null,null,"Луганская Народная Республика"]
[null,null,null,null,"Труба",null,null,"Республика Марий Эл"]
[null,null,null,null,"Тромбон",null,null,"Республика Мордовия"]
[null,null,null,null,"Туба",null,null,"Республика Саха (Якутия)"]
[null,null,null,null,"Теория музыки",null,null,"Республика Северная Осетия - Алания"]
[null,null,null,null,"Ударные инструменты",null,null,"Республика Татарстан (Татарстан)"]
[null,null,null,null,"Фортепиано",null,null,"Республика Тыва"]
[null,null,null,null,"Флейта",null,null,"Удмуртская Республика"]
[null,null,null,null,"Фагот",null,null,"Республика Хакасия"]
[null,null,null,null,"Эстрадное пение",null,null,"Чеченская Республика"]
[null,null,null,null,"Вокальное искусство",null,null,"Чувашская Республика - Чувашия"]
[null,null,null,null,null,null,null,"Алтайский край"]
[null,null,null,null,null,null,null,"Забайкальский край"]
[null,null,null,null,null,null,null,"Камчатский край"]
[null,null,null,null,null,null,null,"Краснодарский край"]
[null,null,null,null,null,null,null,"Красноярский край"]
[null,null,null,null,null,null,null,"Пермский край"]
[null,null,null,null,null,null,null,"Приморский край"]
[null,null,null,null,null,null,null,"Ставропольский край"]
[null,null,null,null,null,null,null,"Хабаровский край"]
[null,null,null,null,null,null,null,"Амурская область"]
[null,null,null,null,null,null,null,"Архангельская область"]
[null,null,null,null,null,null,null,"Астраханская область"]
[null,null,null,null,null,null,null,"Белгородская область"]
[null,null,null,null,null,null,null,"Брянская область"]
[null,null,null,null,null,null,null,"Владимирская область"]
[null,null,null,null,null,null,null,"Волгоградская область"]
[null,null,null,null,null,null,null,"Вологодская область"]
[null,null,null,null,null,null,null,"Воронежская область"]
[null,null,null,null,null,null,null,"Запорожская область"]
[null,null,null,null,null,null,null,"Ивановская область"]
[null,null,null,null,null,null,null,"Иркутская область"]
[null,null,null,null,null,null,null,"Калининградская область"]
[null,null,null,null,null,null,null,"Калужская область"]
[null,null,null,null,null,null,null,"Кемеровская область - Кузбасс"]
[null,null,null,null,null,null,null,"Кировская область"]
[null,null,null,null,null,null,null,"Костромская область"]
[null,null,null,null,null,null,null,"Курганская область"]
[null,null,null,null,null,null,null,"Курская область"]
[null,null,null,null,null,null,null,"Липецкая область"]
[null,null,null,null,null,null,null,"Магаданская область"]
[null,null,null,null,null,null,null,"Московская область"]
[null,null,null,null,null,null,null,"Мурманская область"]
[null,null,null,null,null,null,null,"Нижегородская область"]
[null,null,null,null,null,null,null,"Новгородская область"]
[null,null,null,null,null,null,null,"Новосибирская область"]
[null,null,null,null,null,null,null,"Омская область"]
[null,null,null,null,null,null,null,"Оренбургская область"]
[null,null,null,null,null,null,null,"Орловская область"]
[null,null,null,null,null,null,null,"Пензенская область"]
[null,null,null,null,null,null,null,"Псковская область"]
[null,null,null,null,null,null,null,"Ростовская область"]
[null,null,null,null,null,null,null,"Рязанская область"]
[null,null,null,null,null,null,null,"Самарская область"]
[null,null,null,null,null,null,null,"Саратовская область"]
[null,null,null,null,null,null,null,"Сахалинская область"]
[null,null,null,null,null,null,null,"Свердловская область"]
[null,null,null,null,null,null,null,"Смоленская область"]
[null,null,null,null,null,null,null,"Тамбовская область"]
[null,null,null,null,null,null,null,"Тверская область"]
[null,null,null,null,null,null,null,"Томская область"]
[null,null,null,null,null,null,null,"Тульская область"]
[null,null,null,null,null,null,null,"Тюменская область"]
[null,null,null,null,null,null,null,"Ульяновская область"]
[null,null,null,null,null,null,null,"Херсонская область"]
[null,null,null,null,null,null,null,"Челябинская область"]
[null,null,null,null,null,null,null,"Ярославская область"]
[null,null,null,null,null,null,null,"Еврейская автономная область"]
[null,null,null,null,null,null,null,"Ненецкий автономный округ"]
[null,null,null,null,null,null,null,"Ханты-Мансийский автономный округ - Югра"]
[null,null,null,null,null,null,null,"Чукотский автономный округ"]
[null,null,null,null,null,null,null,"Ямало-Ненецкий автономный округ"]